bitfinex/quotes_BTCUSD_20240906
["timestamp","ask_amount","ask_price","bid_price","bid_amount"]
[1725635074635,0.3941,54922.0,54903.0,0.03643]
[1725635074879,0.364193,54916.0,54904.0,0.3941]
[1725635075101,0.4538824,54920.0,54905.0,0.03643]
[1725635075320,0.182129,54906.0,54905.0,0.03643]
[1725635075537,0.910645,54906.0,54905.0,0.03643]
[1725635075777,1.274903,54906.0,54905.0,0.05843]
[1725635076018,0.1827,54926.0,54905.0,0.05843]
[1725635076254,0.1827,54926.0,54907.0,0.03443]
[1725635076255,0.52650515,54920.0,54907.0,0.03443]
[1725635076461,0.546353,54910.0,54909.0,0.03443]
[1725635076701,0.546348,54910.0,54909.0,0.03243]
[1725635076929,0.546348,54910.0,54909.0,0.05543]
[1725635077167,0.182116,54910.0,54909.0,0.05543]
[1725635077427,0.1,54919.0,54910.0,0.1931]
[1725635077628,0.182109,54912.0,54911.0,0.05343]
[1725635077880,0.910547,54912.0,54911.0,0.05243]
[1725635078088,1.274766,54912.0,54911.0,0.02943]
[1725635078322,1.274857,54908.0,54907.0,0.052062]
[1725635078558,1.274857,54908.0,54907.0,0.015632]
[1725635078797,1.274857,54908.0,54907.0,0.024632]
[1725635079024,0.910612,54908.0,54907.0,0.024632]
[1725635079231,0.93916495,54908.0,54907.0,0.061062]
[1725635079957,0.94016495,54908.0,54907.0,0.075062]
[1725635080180,0.94016495,54908.0,54907.0,0.015632]
[1725635080181,1.30440995,54908.0,54907.0,0.015632]
[1725635080390,1.40440995,54908.0,54907.0,0.015632]
[1725635080827,1.40540995,54908.0,54907.0,0.017632]
[1725635081272,2.13389995,54908.0,54907.0,0.017632]
[1725635081487,0.182179,54891.0,54890.0,0.0001069]
[1725635081775,0.910895,54891.0,54890.0,0.0001069]
[1725635082021,2.121211,54891.0,54890.0,0.0001069]
[1725635082255,1.010895,54891.0,54890.0,0.0001069]
[1725635082498,0.546537,54891.0,54890.0,0.4274369]
[1725635082954,0.182179,54891.0,54890.0,0.4274369]
[1725635083172,0.180728,54893.0,54890.0,0.4274369]
[1725635083173,0.144248,54893.0,54892.0,0.250605]
[1725635083391,0.144248,54893.0,54892.0,1.218256]
[1725635083616,0.144248,54893.0,54892.0,0.853905]
[1725635083872,0.144248,54893.0,54892.0,1.217256]
[1725635084099,0.144248,54893.0,54892.0,0.67073]
[1725635084562,0.145248,54893.0,54892.0,0.67073]
[1725635084779,0.145248,54893.0,54892.0,1.217256]
[1725635085043,0.686765,54893.0,54892.0,0.44923]
[1725635085281,0.182179,54891.0,54890.0,0.0141069]
[1725635085481,1.3647774,54891.0,54890.0,0.0001069]
[1725635085687,1.3647774,54891.0,54890.0,0.0051069]
[1725635085905,1.7301354,54891.0,54890.0,0.0051069]
[1725635086124,1.8301354,54891.0,54890.0,0.0051069]
[1725635086394,2.1944934,54891.0,54890.0,0.0051069]
[1725635087066,1.011895,54891.0,54890.0,0.0051069]
[1725635087306,1.011895,54891.0,54890.0,0.0021069]
[1725635087535,0.911895,54891.0,54890.0,0.0021069]
[1725635087756,0.910895,54891.0,54890.0,0.0001069]
[1725635088647,0.910895,54891.0,54890.0,0.0451709]
[1725635088648,0.912895,54891.0,54890.0,0.0451709]
[1725635088904,0.94145913,54891.0,54890.0,0.0681709]
[1725635089408,0.57710113,54891.0,54890.0,0.0681709]
[1725635089634,0.115248,54893.0,54892.0,1.535158]
[1725635089859,0.546367,54908.0,54907.0,0.5887]
[1725635090094,0.910612,54908.0,54907.0,0.5877]
[1725635090367,0.1912,54927.0,54890.0,0.0307409]
[1725635090368,0.4538824,54912.0,54890.0,0.0327409]
[1725635090583,0.546537,54891.0,54890.0,0.0017409]
[1725635090796,0.546537,54891.0,54890.0,0.0381709]
[1725635090797,0.910895,54891.0,54890.0,0.0381709]
[1725635091031,0.546537,54891.0,54890.0,0.0381709]
[1725635091510,1.275253,54891.0,54890.0,0.0391709]
[1725635091956,1.275253,54891.0,54890.0,0.0017409]
[1725635092414,1.639611,54891.0,54890.0,0.0017409]
[1725635092697,2.130911,54891.0,54890.0,0.0017409]
[1725635092872,2.131911,54891.0,54890.0,0.0107409]
[1725635093306,2.9511514,54891.0,54890.0,0.0147409]
[1725635093522,2.9491514,54891.0,54890.0,0.0017409]
[1725635093748,2.9501514,54891.0,54890.0,0.0107409]
[1725635098432,1.04046468,54891.0,54890.0,0.0661709]
[1725635098660,0.001,54905.0,54890.0,0.0661709]
[1725635098909,0.01,54923.0,54890.0,0.0661709]
[1725635098910,0.001,54911.0,54894.0,0.01]
[1725635099192,0.183,54918.0,54900.0,0.03643]
[1725635099193,0.52750515,54910.0,54900.0,0.03643]
[1725635099400,0.001,54913.0,54901.0,0.02664238]
[1725635099619,0.547183,54918.0,54904.0,0.03643]
[1725635099620,0.182132,54905.0,54904.0,0.03643]
[1725635099838,0.546397,54905.0,54904.0,0.05843]
[1725635100051,0.910662,54905.0,54904.0,0.05843]
[1725635100305,0.910662,54905.0,54904.0,0.03543]
[1725635100306,1.274927,54905.0,54904.0,0.03543]
[1725635100510,1.274927,54905.0,54890.0,0.0017409]
[1725635100511,0.910895,54891.0,54890.0,0.0017409]
[1725635100976,0.001,54896.0,54890.0,0.0017409]
[1725635101201,0.546537,54891.0,54890.0,0.0017409]
[1725635101464,1.639611,54891.0,54890.0,0.0017409]
[1725635101708,1.739611,54891.0,54890.0,0.0017409]
[1725635101960,1.740611,54891.0,54890.0,0.0017409]
[1725635102215,1.740611,54891.0,54872.0,0.00164]
[1725635102216,2.683069,54891.0,54872.0,0.00164]
[1725635102446,2.0950284,54873.0,54872.0,0.00164]
[1725635102668,2.2874284,54873.0,54872.0,0.00164]
[1725635102920,2.7519054,54873.0,54872.0,0.00164]
[1725635103126,2.7519054,54873.0,54852.0,0.00164]
[1725635103127,1.641416,54864.0,54852.0,0.00164]
[1725635103342,1.641416,54864.0,54857.0,0.073108]
[1725635103343,2.8760354,54864.0,54857.0,0.073108]
[1725635103570,2.6114984,54864.0,54852.0,0.00164]
[1725635103794,1.376879,54864.0,54852.0,0.00528596]
[1725635104037,1.376879,54864.0,54852.0,0.00164]
[1725635104284,1.741416,54864.0,54852.0,0.00164]
[1725635104509,1.741416,54864.0,54856.0,0.03643]
[1725635104774,1.375879,54864.0,54856.0,0.00364603]
[1725635104994,1.375879,54864.0,54852.0,0.00164]
[1725635104995,1.375879,54864.0,54858.0,0.03643]
[1725635105266,0.546805,54864.0,54862.0,0.44413]
[1725635105940,0.182265,54865.0,54864.0,0.03543]
[1725635106177,1.7307404,54865.0,54864.0,0.03543]
[1725635106383,1.8297404,54865.0,54864.0,0.03543]
[1725635106607,0.001,54869.0,54864.0,0.03543]
[1725635106608,0.364505,54869.0,54864.0,0.03543]
[1725635106848,0.364417,54883.0,54863.0,0.01413]
[1725635106849,0.001,54881.0,54866.0,0.03443]
[1725635107088,0.364417,54883.0,54867.0,0.00364468]
[1725635107089,0.001,54883.0,54867.0,0.00364468]
[1725635107317,0.408,54889.0,54867.0,0.00364468]
[1725635107318,0.182251,54870.0,54867.0,0.00364468]
[1725635107530,0.00455536,54888.0,54867.0,0.00364468]
[1725635107531,0.00455536,54888.0,54868.0,0.023]
[1725635107763,0.365371,54890.0,54868.0,0.023]
[1725635107764,0.001,54890.0,54873.0,0.029]
[1725635108003,0.02856936,54890.0,54881.0,0.03443]
[1725635108274,0.001,54910.0,54885.0,0.002]
[1725635108504,0.364215,54913.0,54885.0,0.002]
[1725635108505,0.364215,54913.0,54893.0,0.3937]
[1725635108754,0.01,54931.0,54893.0,0.3937]
[1725635108755,0.182147,54901.0,54896.0,0.03443]
[1725635108973,0.0285596,54909.0,54895.0,0.1985]
[1725635108974,0.0285596,54909.0,54906.0,0.01]
[1725635109198,0.52650515,54929.0,54911.0,0.03343]
[1725635109199,0.546328,54912.0,54911.0,0.03343]
[1725635109468,0.910547,54912.0,54911.0,0.05643]
[1725635110145,0.364219,54912.0,54911.0,0.03243]
[1725635110372,1.274766,54912.0,54911.0,0.05543]
[1725635110644,0.910547,54912.0,54911.0,0.05543]
[1725635110873,0.911547,54912.0,54911.0,0.06943]
[1725635111148,0.911547,54912.0,54911.0,0.04643]
[1725635111149,0.547328,54912.0,54911.0,0.04643]
[1725635111370,0.001,54912.0,54911.0,0.626642]
[1725635111592,0.197317,54934.0,54912.0,0.01]
[1725635111593,0.364179,54919.0,54912.0,0.01]
[1725635111809,0.364089,54932.0,54917.0,0.4638824]
[1725635112042,0.364089,54932.0,54911.0,0.6284]
[1725635112043,0.000817,54934.0,54926.0,0.03243]
[1725635112292,0.000817,54934.0,54924.0,0.1973]
[1725635112293,0.000817,54934.0,54933.0,0.029]
[1725635112521,0.000817,54934.0,54933.0,0.07443]
[1725635112757,0.182036,54934.0,54933.0,0.06443]
[1725635113002,0.182036,54934.0,54933.0,0.05543]
[1725635113003,0.546109,54934.0,54933.0,0.05543]
[1725635113230,0.00082,54948.0,54937.0,0.009]
[1725635113456,0.546049,54940.0,54939.0,0.03143]
[1725635113695,0.00182,54948.0,54926.0,0.014]
[1725635113696,0.002,54933.0,54926.0,0.014]
[1725635113936,0.4538824,54944.0,54911.0,0.1929]
[1725635113937,0.001,54924.0,54911.0,0.1929]
[1725635114185,0.182089,54918.0,54917.0,0.52650515]
[1725635114415,0.364127,54926.0,54912.0,0.401]
[1725635114416,0.91053,54913.0,54912.0,0.401]
[1725635114890,0.001,54920.0,54905.0,0.4127]
[1725635114891,0.182129,54906.0,54905.0,0.4127]
[1725635115130,0.182129,54906.0,54898.0,0.009]
[1725635115131,0.001,54911.0,54899.0,0.4127]
[1725635115361,0.4538824,54920.0,54899.0,0.4127]
[1725635115362,0.182149,54900.0,54899.0,0.4127]
[1725635115598,0.001,54906.0,54886.0,0.94550515]
[1725635115599,0.364283,54903.0,54888.0,0.009]
[1725635115833,0.001,54912.0,54894.0,0.4728824]
[1725635116082,0.364228,54911.0,54896.0,0.009]
[1725635116309,0.001,54915.0,54899.0,0.18215]
[1725635116543,0.001,54915.0,54894.0,0.028]
[1725635116544,0.001,54914.0,54894.0,0.028]
[1725635116785,0.001,54914.0,54888.0,0.8182554]
[1725635116786,0.546447,54900.0,54899.0,0.014]
[1725635117040,0.182182,54890.0,54886.0,0.009]
[1725635117259,0.364279,54903.0,54887.0,0.5883]
[1725635117476,0.1,54906.0,54899.0,0.014]
[1725635117713,0.182149,54900.0,54899.0,0.014]
[1725635117939,0.546447,54900.0,54899.0,0.014]
[1725635118430,0.182149,54900.0,54899.0,0.014]
[1725635118653,0.182149,54900.0,54899.0,0.023]
[1725635118869,0.364254,54907.0,54897.0,0.02664269]
[1725635119097,0.182149,54901.0,54898.0,0.4088]
[1725635119314,0.182149,54901.0,54899.0,0.023]
[1725635119562,0.364271,54905.0,54900.0,0.00021927]
[1725635119989,0.364275,54904.0,54900.0,0.00021927]
[1725635120224,0.364186,54917.0,54900.0,0.00021927]
[1725635120225,0.91273,54901.0,54900.0,0.00021927]
[1725635120487,1.277022,54901.0,54900.0,0.00021927]
[1725635120705,1.741314,54901.0,54900.0,0.00021927]
[1725635120924,1.936614,54901.0,54900.0,0.00021927]
[1725635121625,1.936614,54901.0,54873.0,0.3987]
[1725635121626,0.546706,54874.0,54873.0,0.3987]
[1725635121842,0.4538824,54891.0,54875.0,0.182232]
[1725635121843,0.364378,54889.0,54875.0,0.182232]
[1725635122076,0.364335,54895.0,54881.0,0.002]
[1725635122309,0.364335,54895.0,54875.0,0.36446]
[1725635122310,0.1,54900.0,54889.0,0.011]
[1725635122556,0.1,54900.0,54885.0,0.4137]
[1725635122557,0.182195,54886.0,54885.0,0.4137]
[1725635122806,0.546586,54886.0,54885.0,0.4137]
[1725635123051,0.001,54890.0,54875.0,0.4137]
[1725635123284,0.001,54890.0,54880.0,0.009]
[1725635123285,0.182212,54881.0,54880.0,0.009]
[1725635123538,0.364369,54890.0,54875.0,0.4137]
[1725635123771,0.001,54894.0,54872.0,0.001636]
[1725635123772,0.182238,54873.0,54872.0,0.001636]
[1725635124011,1.275669,54873.0,54872.0,0.001636]
[1725635124278,0.911192,54873.0,54872.0,0.001636]
[1725635124501,1.276669,54873.0,54872.0,0.001636]
[1725635124773,1.377669,54873.0,54872.0,0.001636]
[1725635125232,1.742146,54873.0,54872.0,0.001636]
[1725635125996,1.742146,54873.0,54852.0,0.00164]
[1725635125997,0.001,54864.0,54852.0,0.00164]
[1725635126271,2.8677354,54864.0,54852.0,0.00164]
[1725635126517,2.8677354,54864.0,54856.0,0.03643]
[1725635126518,3.5277724,54864.0,54856.0,0.03643]
[1725635126725,3.5277724,54864.0,54852.0,0.00164]
[1725635126944,3.5257724,54864.0,54852.0,0.00164]
[1725635127608,3.55436109,54864.0,54852.0,0.00164]
[1725635127834,3.56636109,54864.0,54863.0,1e-06]
[1725635128067,3.56636109,54864.0,54852.0,0.00164]
[1725635128068,2.957265,54853.0,54852.0,0.00164]
[1725635128302,2.957265,54853.0,54850.0,0.028714]
[1725635128303,1.290184,54851.0,54850.0,0.028714]
[1725635128517,2.119432,54851.0,54850.0,0.028714]
[1725635128767,1.641956,54846.0,54826.0,0.55521915]
[1725635129013,2.6008384,54846.0,54845.0,1e-06]
[1725635129239,2.6008384,54846.0,54806.0,0.002]
[1725635129240,1.27853,54836.0,54816.0,0.52650515]
[1725635129469,1.27853,54836.0,54817.0,0.00164]
[1725635129470,1.27795,54818.0,54817.0,0.00164]
[1725635129727,0.912107,54818.0,54817.0,0.00164]
[1725635129944,0.547264,54818.0,54817.0,0.00164]
[1725635130180,2.033593,54818.0,54817.0,0.00164]
[1725635130408,2.596136,54818.0,54817.0,0.00164]
[1725635130647,2.696136,54818.0,54817.0,0.00164]
[1725635130871,2.331293,54818.0,54817.0,0.00164]
[1725635131123,2.133593,54818.0,54817.0,0.00164]
[1725635131359,1.27695,54818.0,54817.0,0.00164]
[1725635131601,0.364817,54822.0,54817.0,0.00164]
[1725635131874,0.4538824,54832.0,54817.0,0.00164]
[1725635131875,0.9171587,54818.0,54817.0,0.00164]
[1725635132102,0.912107,54818.0,54817.0,0.00164]
[1725635132376,1.28200031,54818.0,54817.0,0.00164]
[1725635132627,0.9457664,54818.0,54817.0,0.00164]
[1725635133116,1.6941094,54818.0,54817.0,0.00164]
[1725635133369,2.2574524,54818.0,54817.0,0.00164]
[1725635133592,2.3574524,54818.0,54817.0,0.00164]
[1725635134539,1.4116094,54818.0,54817.0,0.00164]
[1725635134795,0.0336594,54818.0,54817.0,0.00164]
[1725635135023,0.02860909,54818.0,54817.0,0.03807]
[1725635135239,0.02860909,54818.0,54817.0,0.00164]
[1725635135458,0.57587309,54818.0,54817.0,0.00164]
[1725635135669,0.03435472,54818.0,54817.0,0.02464]
[1725635136109,0.21103009,54818.0,54817.0,0.02464]
[1725635136433,0.21103009,54818.0,54800.0,0.002]
[1725635136434,0.001,54807.0,54800.0,0.002]
[1725635136612,0.6120551,54818.0,54800.0,0.002]
[1725635136613,1.277346,54801.0,54800.0,0.002]
[1725635137073,0.94677437,54801.0,54800.0,0.002]
[1725635137470,0.94881991,54801.0,54800.0,0.002]
[1725635137742,0.21890791,54801.0,54800.0,0.002]
[1725635138233,0.03642991,54801.0,54800.0,0.03843]
[1725635138475,0.00781643,54801.0,54800.0,0.27556002]
[1725635138737,0.02860852,54810.0,54809.0,0.04543]
[1725635138965,0.02860852,54810.0,54809.0,0.07407813]
[1725635139227,0.182421,54819.0,54814.0,0.002]
[1725635139495,0.52750515,54831.0,54810.0,0.182447]
[1725635139496,0.182396,54826.0,54820.0,0.002]
[1725635139744,0.000819,54835.0,54821.0,0.246841]
[1725635139745,0.02860325,54822.0,54821.0,0.246841]
[1725635140006,0.000819,54835.0,54832.0,0.002]
[1725635140234,0.000819,54835.0,54825.0,0.028]
[1725635140235,0.183184,54835.0,54834.0,0.03643]
[1725635140463,0.183184,54835.0,54834.0,0.45393]
[1725635140464,0.000819,54835.0,54834.0,0.45393]
[1725635140694,0.364659,54846.0,54834.0,0.45393]
[1725635140695,0.00073279,54845.0,54835.0,0.002]
[1725635140920,0.001,54851.0,54837.0,0.03643]
[1725635141174,0.547065,54838.0,54837.0,0.03643]
[1725635141433,0.547065,54838.0,54837.0,0.05943]
[1725635141682,0.36467,54844.0,54837.0,0.05943]
[1725635141905,0.00073279,54848.0,54837.0,0.05943]
[1725635141906,0.182324,54848.0,54842.0,0.002]
[1725635142165,0.364625,54851.0,54842.0,0.002]
[1725635142166,0.182338,54843.0,54842.0,0.03643]
[1725635142423,0.182338,54843.0,54834.0,0.4025]
[1725635142424,0.001,54846.0,54835.0,0.03643]
[1725635142658,0.911807,54836.0,54835.0,0.03643]
[1725635142928,1.27653,54836.0,54835.0,0.03643]
[1725635143159,0.364767,54830.0,54826.0,0.4126]
[1725635143426,0.364783,54827.0,54826.0,0.4126]
[1725635143663,0.182391,54827.0,54826.0,0.4126]
[1725635143896,0.582,54847.0,54826.0,0.4126]
[1725635143897,0.1,54843.0,54829.0,0.011]
[1725635144124,0.45461519,54851.0,54827.0,0.364778]
[1725635144125,0.364652,54847.0,54835.0,0.002]
[1725635144349,0.4538824,54857.0,54842.0,0.002]
[1725635144350,0.182329,54846.0,54842.0,0.002]
[1725635144584,0.00858423,54846.0,54843.0,0.5878]
[1725635144842,0.182335,54844.0,54843.0,0.5878]
[1725635145093,0.182335,54844.0,54843.0,0.023]
[1725635145334,0.92024263,54844.0,54843.0,0.023]
[1725635145828,0.92024263,54844.0,54831.0,0.009]
[1725635145829,1.03295003,54844.0,54831.0,0.009]
[1725635146057,0.182415,54820.0,54819.0,0.41086721]
[1725635146347,0.00073279,54837.0,54821.0,0.019]
[1725635146605,0.182405,54824.0,54822.0,0.0036471]
[1725635146819,0.364798,54825.0,54821.0,0.019]
[1725635147068,0.00855006,54823.0,54821.0,0.009]
[1725635147303,0.45461519,54837.0,54821.0,0.009]
[1725635147304,0.182388,54828.0,54821.0,0.19141]
[1725635147553,0.1,54843.0,54828.0,0.3776]
[1725635147780,0.1,54843.0,54830.0,0.1921]
[1725635148019,0.364736,54835.0,54831.0,0.00364666]
[1725635148285,0.364736,54835.0,54830.0,0.1921]
[1725635148286,0.182378,54831.0,54830.0,0.1921]
[1725635148550,0.00073279,54843.0,54830.0,0.1921]
[1725635148551,0.00779156,54834.0,54832.0,0.032]
[1725635148834,0.182371,54833.0,54832.0,0.023]
[1725635149064,0.182371,54833.0,54831.0,0.002]
[1725635149065,0.182375,54832.0,54831.0,0.023]
[1725635149292,0.547125,54832.0,54831.0,0.023]
[1725635149524,0.364688,54842.0,54831.0,0.023]
[1725635149789,0.18237,54834.0,54831.0,0.023]
[1725635150045,0.364717,54838.0,54831.0,0.023]
[1725635150046,0.21096745,54832.0,54831.0,0.023]
[1725635150274,0.02618026,54845.0,54831.0,0.023]
[1725635150506,0.182375,54832.0,54831.0,0.023]
[1725635150738,0.00073279,54845.0,54831.0,0.023]
[1725635150968,0.547125,54832.0,54831.0,0.023]
[1725635151200,0.911875,54832.0,54831.0,0.023]
[1725635151436,0.547125,54832.0,54831.0,0.023]
[1725635151669,0.182375,54832.0,54831.0,0.023]
[1725635151908,0.18239,54828.0,54827.0,0.023]
[1725635152152,0.547167,54828.0,54827.0,0.023]
[1725635152399,0.00173279,54839.0,54824.0,0.023]
[1725635152400,0.547195,54825.0,54824.0,0.023]
[1725635152661,0.02455868,54837.0,54823.0,0.1864]
[1725635152662,0.547204,54824.0,54823.0,0.1864]
[1725635152912,0.364747,54833.0,54824.0,0.009]
[1725635153133,0.18239,54828.0,54825.0,0.03643]
[1725635153369,0.1,54836.0,54828.0,0.03643]
[1725635153585,0.547155,54829.0,54828.0,0.03643]
[1725635153817,0.911925,54829.0,54828.0,0.03643]
[1725635154104,0.92125732,54829.0,54828.0,0.03643]
[1725635154357,0.55648732,54829.0,54828.0,0.03643]
[1725635154582,0.55648932,54829.0,54828.0,0.03643]
[1725635154823,0.92125932,54829.0,54828.0,0.03643]
[1725635155052,0.19171932,54829.0,54828.0,0.03643]
[1725635155349,0.02527626,54837.0,54828.0,0.03643]
[1725635155350,0.000819,54847.0,54838.0,0.04543]
[1725635155578,0.02512867,54845.0,54840.0,0.03643]
[1725635155800,0.000819,54847.0,54840.0,0.03643]
[1725635155801,0.547035,54841.0,54840.0,0.03643]
[1725635156026,0.547035,54841.0,54840.0,0.05943]
[1725635156508,0.36547,54847.0,54845.0,0.03643]
[1725635156509,0.000819,54847.0,54845.0,0.03643]
[1725635156763,0.4538824,54866.0,54845.0,0.03643]
[1725635156764,0.364578,54858.0,54852.0,0.002]
[1725635156997,0.4538824,54872.0,54852.0,0.002]
[1725635156998,0.00173279,54876.0,54859.0,0.41713]
[1725635157234,0.00173279,54876.0,54862.0,0.002]
[1725635157235,0.00073279,54871.0,54862.0,0.002]
[1725635157466,0.00073279,54871.0,54861.0,0.03643]
[1725635157467,0.91310979,54862.0,54861.0,0.03643]
[1725635157719,1.27666079,54862.0,54861.0,0.03643]
[1725635157978,0.911592,54849.0,54848.0,0.44613]
[1725635158208,0.182318,54849.0,54848.0,0.44613]
[1725635158458,0.546955,54849.0,54848.0,0.46913]
[1725635158690,0.911592,54849.0,54848.0,0.46913]
[1725635158941,0.1,54863.0,54854.0,0.1823]
[1725635159177,0.182286,54859.0,54855.0,0.05943]
[1725635159449,0.546885,54856.0,54855.0,0.05943]
[1725635159919,0.182295,54856.0,54855.0,0.05943]
[1725635160166,0.911475,54856.0,54855.0,0.05943]
[1725635160448,0.510465,54850.0,54849.0,0.03643]
[1725635160697,0.1,54856.0,54849.0,0.03643]
[1725635160927,0.546945,54850.0,54849.0,0.03643]
[1725635161162,0.546945,54850.0,54844.0,0.03643]
[1725635161163,0.91266,54845.0,54844.0,0.03643]
[1725635161395,0.91266,54845.0,54830.0,0.03643]
[1725635161396,0.911892,54831.0,54830.0,0.03643]
[1725635161632,1.276649,54831.0,54830.0,0.03643]
[1725635162635,0.911892,54831.0,54830.0,0.03643]
[1725635162866,0.18929715,54831.0,54830.0,0.03643]
[1725635163132,0.92054394,54831.0,54830.0,0.03643]
[1725635163368,0.912107,54818.0,54817.0,0.03643]
[1725635163593,1.641793,54818.0,54817.0,0.03643]
[1725635163815,1.28378287,54818.0,54817.0,0.03643]
[1725635164305,0.91893987,54818.0,54817.0,0.03643]
[1725635164563,0.182445,54811.0,54810.0,0.0003363]
[1725635164786,0.547335,54811.0,54810.0,0.0003363]
[1725635165022,1.28390487,54811.0,54810.0,0.0003363]
[1725635165497,0.00678987,54811.0,54810.0,0.0003363]
[1725635165780,0.00678987,54811.0,54810.0,0.63115117]
[1725635166021,0.364848,54818.0,54816.0,0.00926721]
[1725635166277,0.364848,54818.0,54814.0,0.01]
[1725635166278,0.182383,54830.0,54824.0,0.182399]
[1725635166520,0.05385226,54831.0,54830.0,0.002]
[1725635166521,0.02860337,54831.0,54830.0,0.002]
[1725635166757,0.3925,54847.0,54830.0,0.002]
[1725635166758,0.38969434,54839.0,54831.0,0.009]
[1725635167005,0.38969434,54839.0,54828.0,0.023]
[1725635167006,0.364666,54845.0,54840.0,0.009]
[1725635167235,0.184115,54856.0,54834.0,0.00926721]
[1725635167236,0.182348,54840.0,54839.0,0.5837]
[1725635167471,0.02635884,54851.0,54839.0,0.6067]
[1725635167699,0.182348,54840.0,54839.0,0.5837]
[1725635167949,0.182348,54840.0,54832.0,0.4167]
[1725635167950,1.2766,54833.0,54832.0,0.4167]
[1725635168186,1.2766,54833.0,54832.0,0.023]
[1725635168463,0.00073279,54822.0,54812.0,0.4]
[1725635168692,0.91219,54813.0,54812.0,0.4]
[1725635168921,0.912225,54811.0,54810.0,0.0003363]
[1725635169171,1.643005,54811.0,54810.0,0.0003363]
[1725635169405,0.912225,54811.0,54810.0,0.0003363]
[1725635169680,0.182445,54811.0,54810.0,0.0003363]
[1725635169899,0.912225,54811.0,54810.0,0.0003363]
[1725635170802,0.02566634,54815.0,54810.0,0.0003363]
[1725635171030,0.36486,54816.0,54810.0,0.0003363]
[1725635171031,0.912225,54811.0,54810.0,0.0003363]
[1725635171263,0.182445,54811.0,54810.0,0.0003363]
[1725635171516,0.02534397,54819.0,54810.0,0.1146685]
[1725635171762,0.364831,54820.0,54812.0,0.01926721]
[1725635171998,0.3884,54831.0,54812.0,0.01926721]
[1725635171999,0.364793,54826.0,54819.0,0.002]
[1725635172246,0.02478479,54831.0,54819.0,0.009]
[1725635172476,0.182394,54827.0,54826.0,0.4]
[1725635172702,0.182386,54829.0,54826.0,0.4]
[1725635172932,0.1955,54843.0,54826.0,0.4]
[1725635172933,0.364663,54846.0,54827.0,0.2067]
[1725635173162,0.001,54846.0,54828.0,0.00364668]
[1725635173395,0.02463114,54845.0,54833.0,0.002]
[1725635173652,0.1864,54849.0,54833.0,0.002]
[1725635173653,0.182366,54835.0,54833.0,0.002]
[1725635173905,0.364692,54841.0,54831.0,0.023]
[1725635174139,0.364689,54842.0,54836.0,0.002]
[1725635174369,0.364689,54842.0,54833.0,0.019]
[1725635174370,0.00073279,54850.0,54839.0,0.002]
[1725635174607,0.182355,54838.0,54837.0,0.002]
[1725635174891,0.00532921,54849.0,54842.0,0.009]
[1725635175107,0.00154779,54856.0,54841.0,0.4538824]
[1725635175108,0.00154779,54856.0,54843.0,0.023]
[1725635175344,0.182331,54846.0,54843.0,0.023]
[1725635175576,0.182331,54846.0,54845.0,0.03643]
[1725635175577,0.182328,54846.0,54845.0,0.03643]
[1725635175811,1.640956,54846.0,54845.0,0.03643]
[1725635176054,1.640956,54846.0,54829.0,0.009]
[1725635176055,0.547125,54832.0,54831.0,0.399]
[1725635176296,0.364657,54846.0,54831.0,0.399]
[1725635176297,0.00073279,54853.0,54837.0,0.009]
[1725635176536,0.18231,54852.0,54842.0,0.4143]
[1725635176775,0.546966,54848.0,54847.0,0.03643]
[1725635176997,0.00073279,54855.0,54847.0,0.03643]
[1725635177242,0.5522853,54848.0,54847.0,0.03643]
[1725635177488,0.546966,54848.0,54847.0,0.05943]
[1725635177735,0.9169293,54848.0,54847.0,0.05943]
[1725635177987,0.5522853,54848.0,54847.0,0.05943]
[1725635178227,0.0053193,54848.0,54847.0,0.05943]
[1725635178458,0.000815,54856.0,54853.0,0.009]
[1725635178700,0.000815,54856.0,54855.0,0.4903124]
[1725635178949,0.000815,54856.0,54855.0,0.6956104]
[1725635179187,0.000815,54856.0,54855.0,1.69187461]
[1725635179421,0.00073279,54874.0,54855.0,1.69187461]
[1725635179422,0.05513326,54880.0,54871.0,0.03643]
[1725635179648,0.18223,54876.0,54873.0,0.03643]
[1725635179894,0.182235,54874.0,54873.0,0.03643]
[1725635180114,0.546706,54874.0,54873.0,0.05943]
[1725635180359,0.911177,54874.0,54873.0,0.05943]
[1725635180595,0.364445,54878.0,54873.0,0.05943]
[1725635180845,0.05440047,54882.0,54876.0,0.3829]
[1725635181077,0.05440047,54884.0,54883.0,0.03643]
[1725635181589,0.08160071,54886.0,54883.0,0.03643]
[1725635181590,0.05440047,54886.0,54884.0,0.009]
[1725635181592,0.10962095,54890.0,54886.0,0.009]
[1725635181593,0.05440047,54889.0,54886.0,0.009]
[1725635181841,0.01873577,54890.0,54886.0,0.04907311]
[1725635182069,0.01873577,54890.0,54888.0,0.03643]
[1725635182327,0.910927,54889.0,54888.0,0.03643]
[1725635182801,1.86623079,54889.0,54888.0,0.03643]
[1725635183045,1.86623079,54889.0,54876.0,0.03643]
[1725635183046,0.364399,54885.0,54876.0,0.03643]
[1725635183289,0.10953374,54889.0,54879.0,0.03643]
[1725635183290,0.182216,54880.0,54879.0,0.03643]
[1725635183528,0.546647,54880.0,54879.0,0.03643]
[1725635183779,0.911078,54880.0,54879.0,0.03643]
[1725635184288,0.364461,54876.0,54871.0,0.3839]
[1725635184544,0.364461,54876.0,54872.0,0.023]
[1725635184770,0.364431,54880.0,54872.0,0.023]
[1725635185001,0.08163194,54886.0,54881.0,0.009]
[1725635185252,0.182198,54886.0,54882.0,0.4015]
[1725635185478,0.47321759,54889.0,54885.0,0.4628824]